bitfinex-derivatives/quotes_BNBF0:USTF0_20251219
["timestamp","ask_amount","ask_price","bid_price","bid_amount"]
[1766121096373,0.88606425,837.36,835.8,1.673]
[1766121096569,0.88606425,837.28,835.8,1.673]
[1766121096771,1.19528134,837.27,835.8,1.673]
[1766121098272,2.08134559,837.27,835.8,1.673]
[1766121098471,1.19528134,837.26,835.8,1.673]
[1766121099371,0.88606425,837.3,835.8,1.673]
[1766121099571,10.21858063,837.29,835.8,1.673]
[1766121099769,1.19626747,837.28,835.8,1.673]
[1766121101680,1.19626747,837.28,835.86,0.88889323]
[1766121101877,1.19626747,837.28,835.86,13.96686953]
[1766121102479,1.19626747,837.28,835.86,13.0779763]
[1766121102780,0.88606425,837.15,835.86,13.0779763]
[1766121102980,1.19626747,837.14,835.86,13.0779763]
[1766121103480,0.88606425,837.15,835.86,13.0779763]
[1766121103681,2.08261762,837.14,835.86,13.0779763]
[1766121103976,1.19655337,837.13,835.86,13.0779763]
[1766121104180,0.88606425,837.19,835.86,13.0779763]
[1766121104576,1.1964812,837.18,835.86,13.0779763]
[1766121104775,1.19648126,837.17,835.86,13.0779763]
[1766121105075,1.19648126,837.16,835.86,13.0779763]
[1766121105376,1.19648126,837.15,835.86,13.0779763]
[1766121105576,1.19648126,837.14,835.86,13.0779763]
[1766121105775,1.19648126,837.13,835.86,13.0779763]
[1766121105979,0.88606425,837.21,835.86,13.0779763]
[1766121106180,2.08251994,837.2,835.86,13.0779763]
[1766121106376,1.19645569,837.19,835.86,13.0779763]
[1766121107176,1.19645569,837.18,835.86,13.0779763]
[1766121107382,0.88606425,837.25,835.86,13.0779763]
[1766121107575,1.19639154,837.24,835.86,13.0779763]
[1766121108080,2.08245579,837.24,835.86,13.0779763]
[1766121108280,1.19639154,837.23,835.86,13.0779763]
[1766121112682,2.07977743,837.23,835.86,13.0779763]
[1766121112981,1.19639154,837.22,835.86,13.0779763]
[1766121113179,2.07977743,837.22,835.86,13.0779763]
[1766121113382,0.88338589,837.12,835.86,13.0779763]
[1766121113581,1.19639154,837.11,835.86,13.0779763]
[1766121113779,1.19639154,837.1,835.86,13.0779763]
[1766121114078,1.19639154,837.09,835.86,13.0779763]
[1766121114280,0.88338589,837.13,835.86,13.0779763]
[1766121114479,1.19654775,837.12,835.86,13.0779763]
[1766121115381,0.88338589,837.18,835.86,13.0779763]
[1766121115585,1.19647573,837.17,835.86,13.0779763]
[1766121117883,1.19647573,837.16,835.86,13.0779763]
[1766121118086,1.19647573,837.15,835.86,13.0779763]
[1766121118382,0.88338589,837.19,835.86,13.0779763]
[1766121118686,1.19646224,837.18,835.86,13.0779763]
[1766121119183,0.88338589,837.27,835.86,13.0779763]
[1766121119383,1.19632461,837.26,835.86,13.0779763]
[1766121119587,1.19632461,837.25,835.86,13.0779763]
[1766121119782,9.02231316,837.29,835.86,13.0779763]
[1766121119984,1.19631211,837.28,835.86,13.0779763]
[1766121120581,1.19631211,837.28,835.86,13.96736556]
[1766121121082,1.19631211,837.28,835.89,0.88938926]
[1766121121284,1.19631211,837.28,835.88,0.88938926]
[1766121121682,9.02231316,837.29,835.88,0.88938926]
[1766121121884,9.02231316,837.29,835.89,0.88938926]
[1766121122387,9.02231316,837.29,835.92,0.88938926]
[1766121123082,9.02231316,837.29,836.33,0.88938926]
[1766121123285,9.02231316,837.29,836.3,0.88938926]
[1766121123485,9.02231316,837.29,836.31,0.88938926]
[1766121123684,9.02231316,837.29,836.34,0.88938926]
[1766121124487,9.02231316,837.29,836.38,0.88938926]
[1766121125490,9.02231316,837.29,836.37,0.88938926]
[1766121125692,9.02231316,837.29,836.34,0.88938926]
[1766121125893,9.02231316,837.29,836.33,0.88938926]
[1766121126092,9.02231316,837.29,836.3,0.88938926]
[1766121126292,9.02231316,837.29,836.26,0.88938926]
[1766121126593,9.02231316,837.29,836.22,0.88938926]
[1766121126994,9.02231316,837.29,836.19,0.88938926]
[1766121127193,9.02231316,837.29,836.18,0.88938926]
[1766121127389,9.02231316,837.29,836.11,0.88938926]
[1766121128290,9.02231316,837.29,836.04,0.88938926]
[1766121129394,9.02231316,837.29,836.1,0.88938926]
[1766121131496,9.02231316,837.29,836.09,0.88938926]
[1766121133296,9.02231316,837.29,836.1,0.88938926]
[1766121134297,9.02231316,837.29,836.15,0.88938926]
[1766121134595,9.02231316,837.29,836.16,0.88938926]
[1766121137000,9.02231316,837.29,836.18,0.88938926]
[1766121139102,9.02231316,837.29,836.24,0.88938926]
[1766121140902,9.02231316,837.29,836.25,0.88938926]
[1766121141101,0.88338589,837.79,836.27,0.88938926]
[1766121141300,0.88338589,838.02,836.49,0.88938926]
[1766121141503,1.19531149,838.01,836.49,0.88938926]
[1766121141904,1.19531149,838.0,836.49,0.88938926]
[1766121142108,1.19531149,837.99,836.49,0.88938926]
[1766121142303,1.19531149,837.98,836.48,0.88938926]
[1766121142505,0.88338589,838.04,836.48,0.88938926]
[1766121142709,1.19529896,838.03,836.48,0.88938926]
[1766121143308,1.19529896,838.03,836.47,0.88938926]
[1766121143610,1.19529896,838.02,836.47,0.88938926]
[1766121143806,1.19529896,838.01,836.47,0.88938926]
[1766121144007,1.19529896,838.0,836.47,0.88938926]
[1766121144212,1.19529896,837.99,836.47,0.88938926]
[1766121144414,0.88338589,838.05,836.47,0.88938926]
[1766121144613,1.1952987,838.04,836.47,0.88938926]
[1766121145009,1.1952987,838.04,836.51,0.88938926]
[1766121145215,1.1952987,838.03,836.5,0.88938926]
[1766121145513,1.1952987,838.02,836.51,0.88938926]
[1766121145713,0.88338589,838.08,836.51,0.88938926]
[1766121146014,1.19524741,838.07,836.51,0.88938926]
[1766121146815,1.19524727,838.06,836.51,0.88938926]
[1766121147014,1.19524727,838.05,836.51,0.88938926]
[1766121147210,1.19524727,838.04,836.51,0.88938926]
[1766121147416,1.19524727,838.03,836.51,0.88938926]
[1766121147714,1.19524727,838.02,836.51,0.88938926]
[1766121148010,0.88338589,838.08,836.51,0.88938926]
[1766121148209,2.07863311,838.07,836.5,0.88938926]
[1766121148411,1.19524722,838.06,836.5,0.88938926]
[1766121149515,1.19524722,838.06,836.46,0.88938926]
[1766121149516,0.88338589,838.02,836.46,0.88938926]
[1766121149722,1.19524722,838.01,836.46,0.88938926]
[1766121150216,1.19524722,838.01,836.45,0.88938926]
[1766121150417,1.19524722,838.01,836.44,0.88938926]
[1766121150617,1.19524722,838.0,836.44,0.88938926]
[1766121150813,1.19524722,837.99,836.44,0.88938926]
[1766121151017,1.19524722,837.98,836.44,0.88938926]
[1766121151217,1.19524722,837.97,836.43,0.88938926]
[1766121151514,1.1953576,837.96,836.41,0.88938926]
[1766121151718,1.1953576,837.95,836.41,0.88938926]
[1766121152015,0.88338589,838.01,836.41,0.88938926]
[1766121152219,1.19535791,838.0,836.41,0.88938926]
[1766121152414,1.19535791,838.0,836.4,0.88938926]
[1766121152617,1.19535791,837.99,836.4,0.88938926]
[1766121152817,1.19535791,837.98,836.4,0.88938926]
[1766121153019,1.19535791,837.97,836.4,0.88938926]
[1766121153220,1.19535791,837.96,836.4,0.88938926]
[1766121153518,0.88338589,838.03,836.4,0.88938926]
[1766121153719,1.19535786,838.02,836.4,0.88938926]
[1766121154217,1.19535786,838.02,836.39,0.88938926]
[1766121155126,1.19535786,838.02,836.38,0.88938926]
[1766121156021,1.19535786,838.02,835.86,13.0779763]
[1766121156022,0.88338589,837.99,836.33,0.88938926]
[1766121156225,1.19535786,837.98,836.33,0.88938926]
[1766121156421,1.19535786,837.98,836.18,1.18997686]
[1766121156422,1.19535786,837.98,836.32,0.88938926]
[1766121161531,2.07874375,837.98,836.31,0.88938926]
[1766121161731,1.19535786,837.97,836.31,0.88938926]
[1766121162932,0.88338589,838.05,836.38,0.88938926]
[1766121163134,1.19533769,838.04,836.38,0.88938926]
[1766121163334,1.19533769,838.04,836.42,0.88938926]
[1766121163534,8.97004047,838.07,836.47,0.88938926]
[1766121164931,1.19522222,838.06,836.47,0.88938926]
[1766121165134,8.97004047,838.07,836.47,0.88938926]
[1766121165336,1.19522222,838.06,836.48,0.88938926]
[1766121166435,8.97004047,838.07,836.49,0.88938926]
[1766121167332,8.97004047,838.07,836.5,0.88938926]
[1766121167537,1.19520928,838.06,836.5,0.88938926]
[1766121169738,1.19520928,838.06,836.48,0.88938926]
[1766121169938,0.88338589,838.04,836.43,0.88938926]
[1766121170140,1.19520928,838.03,836.43,0.88938926]
[1766121170338,2.07859517,838.03,836.44,0.88938926]
[1766121170539,1.19520928,838.02,836.44,0.88938926]
[1766121171435,2.07859517,838.02,836.45,0.88938926]
[1766121171739,1.19520928,838.01,836.27,1.18997686]
[1766121171937,0.88327797,837.93,836.35,0.88719742]
[1766121172138,1.19520928,837.92,836.35,0.88719742]
[1766121172335,2.07848725,837.92,836.37,0.88719742]
[1766121172535,1.19520928,837.91,836.37,0.88719742]
[1766121173240,2.07848725,837.91,836.38,0.88719742]
[1766121173540,1.19520928,837.9,836.38,0.88719742]
[1766121173740,0.88327797,837.89,836.36,0.88719742]
[1766121173939,8.97004047,838.07,836.3,0.88719742]
[1766121173940,0.88327797,837.83,836.3,0.88719742]
[1766121174141,1.19520928,837.82,836.3,0.88719742]
[1766121174340,0.88327797,837.81,836.33,0.88719742]
[1766121174537,1.19520928,837.8,836.33,0.88719742]
[1766121175338,0.88327797,837.79,836.35,0.88719742]
[1766121175542,1.19520928,837.78,836.35,0.88719742]
[1766121175943,1.19520928,837.78,836.37,0.88719742]
[1766121176144,1.19520928,837.77,836.37,0.88719742]
[1766121176345,1.19520928,837.76,836.39,0.88719742]
[1766121176546,1.19520928,837.75,836.39,0.88719742]
[1766121176742,0.88327797,837.79,836.4,0.88719742]
[1766121176947,1.19552011,837.78,836.42,0.88719742]
[1766121177148,0.88327797,837.82,836.42,0.88719742]
[1766121177447,0.88327797,837.79,836.45,0.88719742]
[1766121177646,1.19551352,837.78,836.45,0.88719742]
[1766121178246,0.88327797,837.77,836.47,0.88719742]
[1766121178547,1.19551352,837.76,836.47,0.88719742]
[1766121179350,0.88327797,837.75,836.49,0.88719742]
[1766121179548,1.19551352,837.74,836.49,0.88719742]
[1766121180946,0.88327797,837.67,836.42,0.88719742]
[1766121181251,0.88327797,837.47,836.26,0.88719742]
[1766121181447,1.19551352,837.46,836.26,0.88719742]
[1766121182247,2.07879149,837.46,836.27,0.88719742]
[1766121182447,1.19551352,837.45,836.27,0.88719742]
[1766121183651,1.19551352,837.44,836.27,0.88719742]
[1766121183852,1.19551352,837.43,836.27,0.88719742]
[1766121184154,0.88327797,837.47,836.26,0.88719742]
[1766121184448,1.19587768,837.46,836.26,0.88719742]
[1766121186355,1.19587768,837.45,836.25,0.88719742]
[1766121186556,1.19587768,837.44,836.25,0.88719742]
[1766121186754,0.88327797,837.48,836.25,0.88719742]
[1766121187049,1.19587768,837.47,836.25,0.88719742]
[1766121189253,1.19587768,837.47,836.26,0.88719742]
[1766121190157,1.19587768,837.47,836.25,0.88719742]
[1766121190356,1.19587768,837.47,836.26,0.88719742]
[1766121191157,1.19587768,837.47,836.25,0.88719742]
[1766121191358,2.07915565,837.47,836.26,0.88719742]
[1766121191554,2.07915565,837.46,836.12,2.301]
[1766121191753,1.19587768,837.45,836.12,2.301]
[1766121192458,1.19587768,837.44,836.12,2.301]
[1766121192660,0.88327797,837.46,836.12,2.301]
[1766121192855,1.19587779,837.45,836.12,2.301]
[1766121196464,1.19587779,837.44,836.12,2.301]
[1766121196665,0.88327797,837.47,836.12,2.301]
[1766121196865,1.19587799,837.46,836.12,2.301]
[1766121198667,0.88327797,837.45,836.12,2.301]
[1766121198965,1.19587799,837.44,836.12,2.301]
[1766121199166,2.07915596,837.44,836.12,2.301]
[1766121199366,0.88327797,837.37,836.12,2.301]
[1766121199566,1.19587799,837.36,836.12,2.301]
[1766121200067,0.88327797,837.32,836.12,2.301]
[1766121200367,1.19609269,837.31,836.12,2.301]
[1766121200567,0.88327797,837.33,836.12,2.301]
[1766121200766,1.19609243,837.32,836.12,2.301]
[1766121201368,0.88327797,837.34,836.12,2.301]
[1766121201563,1.19609253,837.33,836.12,2.301]
[1766121202261,0.88327797,837.4,836.12,2.301]
[1766121202464,1.19602104,837.39,836.12,2.301]
[1766121203267,0.88327797,837.41,836.12,2.301]
[1766121203570,1.19600807,837.4,836.12,2.301]
[1766121204364,1.19600807,837.39,836.12,2.301]
[1766121204567,0.88327797,837.42,836.12,2.301]
[1766121204765,1.19600807,837.41,836.12,2.301]
[1766121212478,2.07928604,837.41,836.12,2.301]
[1766121212684,1.19600807,837.4,836.12,2.301]
[1766121213181,0.88327797,837.39,836.12,2.301]
[1766121213382,1.19600807,837.38,836.12,2.301]
[1766121216688,1.19600807,837.38,835.93,1.18997686]
[1766121216880,2.07928604,837.38,835.92,1.18997686]
[1766121217085,1.19600807,837.37,835.92,1.18997686]
[1766121217286,0.88327797,837.3,835.86,13.0779763]
[1766121217487,0.88327797,837.35,835.88,1.18997686]
[1766121217685,1.19611232,837.34,835.88,1.18997686]
[1766121219488,1.19611232,837.34,835.89,3.04997686]
[1766121219691,0.88327797,837.37,835.91,1.18997686]
[1766121219985,0.88327797,837.44,835.97,1.18997686]
[1766121220190,0.88327797,837.44,835.98,1.18997686]
[1766121220191,1.19598253,837.43,835.98,1.18997686]
[1766121221189,0.88327797,837.45,836.0,1.18997686]
[1766121221390,0.88327797,837.5,836.04,1.18997686]
[1766121221590,2.0791684,837.49,836.04,1.18997686]
[1766121221886,1.19589043,837.48,836.04,1.18997686]
[1766121223185,2.0791684,837.48,836.04,1.18997686]
[1766121223386,1.19589043,837.47,836.04,1.18997686]
[1766121224189,1.19589043,837.47,836.05,1.18997686]
[1766121224392,2.0791684,837.47,836.05,1.18997686]
[1766121224591,1.19589043,837.46,836.05,1.18997686]
[1766121225193,1.19589043,837.46,836.06,1.18997686]
[1766121225392,2.0791684,837.46,836.07,1.18997686]
[1766121225693,1.19589043,837.45,836.07,1.18997686]
[1766121226293,0.88327797,837.44,836.08,1.18997686]
[1766121226493,1.19589043,837.43,836.08,1.18997686]
[1766121226895,0.88327797,837.42,836.05,1.18997686]
[1766121227193,2.0791684,837.41,836.05,1.18997686]
[1766121227392,8.97004047,838.07,836.07,1.18997686]
[1766121227393,2.0791684,837.4,836.07,1.18997686]
[1766121227590,1.19589043,837.39,836.07,1.18997686]
[1766121228189,0.88327797,837.38,836.08,1.18997686]
[1766121228393,1.19589043,837.37,836.08,1.18997686]
[1766121229296,2.0791684,837.37,836.1,1.18997686]
[1766121229496,1.19589043,837.36,836.1,1.18997686]
[1766121230395,0.88327797,837.35,836.12,1.18997686]
[1766121230595,1.19589043,837.34,836.12,1.18997686]
[1766121231192,2.0791684,837.34,836.13,1.18997686]
[1766121231392,1.19589043,837.33,836.13,1.18997686]
[1766121231798,1.19589043,837.33,836.11,1.18997686]
[1766121231799,0.88327797,837.32,836.11,1.18997686]
[1766121231991,1.19589043,837.31,836.11,1.18997686]
[1766121232297,2.0791684,837.31,836.12,1.18997686]
[1766121232492,1.19589043,837.3,836.12,1.18997686]
[1766121233197,2.0791684,837.3,836.13,1.18997686]
[1766121233497,1.19589043,837.29,836.13,1.18997686]
[1766121234094,2.0791684,837.29,836.14,1.18997686]
[1766121234294,1.19589043,837.28,836.14,1.18997686]
[1766121235408,2.0791684,837.28,836.15,1.18997686]
[1766121235597,1.19589043,837.27,836.15,1.18997686]
[1766121236199,2.0791684,837.27,836.16,1.18997686]
[1766121236395,1.19589043,837.26,836.16,1.18997686]
[1766121236597,0.88327797,837.27,836.16,1.18997686]
[1766121236801,0.88327797,837.27,835.89,1.86]
[1766121236802,0.88327797,837.29,836.18,1.18997686]
[1766121237097,1.1959355,837.28,836.19,1.18997686]
[1766121237396,0.88327797,837.3,835.89,1.86]
[1766121237397,1.1959355,837.27,836.2,1.18997686]
[1766121237601,0.88327797,837.29,836.2,1.18997686]
[1766121237800,1.1959227,837.28,836.2,1.18997686]
[1766121238297,2.07920067,837.27,836.21,1.18997686]
[1766121238601,0.88327797,837.29,836.23,1.18997686]
[1766121238801,1.19589693,837.28,836.24,1.18997686]
[1766121239301,2.0791749,837.28,836.25,1.18997686]
[1766121239601,1.19589693,837.27,836.25,1.18997686]
[1766121241103,2.0791749,837.27,836.27,1.18997686]
[1766121241305,0.88327797,837.34,836.34,1.18997686]
[1766121241502,1.19578014,837.33,836.34,1.18997686]
[1766121241904,0.88327797,837.35,836.35,1.18997686]
[1766121242104,1.19576626,837.34,836.35,1.18997686]
[1766121242608,0.88327797,837.36,836.35,1.18997686]
[1766121242810,1.1957661,837.35,836.35,1.18997686]
[1766121243409,1.1957661,837.35,835.89,1.86]
[1766121243410,0.88327797,837.4,836.39,1.18997686]
[1766121243606,1.19570218,837.39,836.39,1.18997686]
[1766121244210,1.19570218,837.39,836.38,1.18997686]
[1766121244510,0.88327797,837.41,836.38,1.18997686]
[1766121244709,1.19570218,837.4,836.38,1.18997686]
[1766121246510,0.88327797,837.42,836.37,1.18997686]
[1766121246811,1.19569571,837.41,836.38,1.18997686]
[1766121247410,1.19569571,837.41,836.37,1.18997686]
[1766121247606,0.88327797,837.43,836.37,1.18997686]
[1766121247807,1.19569561,837.42,836.37,1.18997686]
[1766121249214,0.88327797,837.39,836.32,1.18997686]
[1766121249409,1.19569561,837.38,836.32,1.18997686]
[1766121251612,0.88327797,837.39,836.31,1.18997686]
[1766121251812,1.1957601,837.38,836.31,1.18997686]
[1766121252516,0.88327797,837.4,836.31,1.18997686]
[1766121252715,1.1957601,837.39,836.31,1.18997686]
[1766121254620,0.88327797,837.4,836.31,1.18997686]
[1766121254815,1.19576056,837.39,836.31,1.18997686]
[1766121255120,0.88327797,837.35,836.26,1.18997686]
[1766121255321,0.88327797,837.27,836.18,1.18997686]
[1766121255518,1.19576056,837.26,836.18,1.18997686]
[1766121255721,10.18857637,837.26,836.18,1.18997686]
[1766121255918,8.99281581,837.26,836.18,1.18997686]
[1766121256217,8.99281581,837.26,836.17,1.18997686]
[1766121256423,8.99281581,837.26,836.18,1.18997686]
[1766121256919,1.19595207,837.25,836.17,1.18997686]
[1766121257124,0.88327797,837.24,836.14,1.18997686]
[1766121257319,0.88327797,837.21,836.12,1.18997686]
[1766121257521,1.19595207,837.2,836.12,1.18997686]
[1766121259231,1.19595207,837.2,836.11,1.18997686]
[1766121260120,1.19595207,837.2,836.12,1.18997686]
[1766121265723,0.88327797,837.21,836.12,1.18997686]
[1766121265926,0.88327797,837.22,836.13,1.18997686]
[1766121266125,1.19601962,837.21,836.13,1.18997686]
[1766121266326,0.88327797,837.22,836.13,1.18997686]
[1766121266524,0.88327797,837.25,836.15,1.18997686]
[1766121266727,1.19598099,837.24,836.15,1.18997686]
[1766121268731,1.19598099,837.24,836.15,13.98016622]
[1766121269433,0.88327797,837.25,836.16,1.18997686]
[1766121269629,8.99281581,837.26,836.25,1.18997686]
[1766121269834,8.99281581,837.26,836.29,1.18997686]
[1766121270031,8.99281581,837.26,836.34,1.18997686]
[1766121270235,8.99281581,837.26,836.39,1.18997686]
[1766121271032,8.99281581,837.26,836.48,1.18997686]
[1766121271231,8.99281581,837.26,836.47,1.18997686]
[1766121271533,8.99281581,837.26,836.48,2.164]
[1766121271737,8.99281581,837.26,836.55,1.18997686]
[1766121271938,8.99281581,837.26,836.56,1.18997686]
[1766121272438,8.99281581,837.26,836.54,1.18997686]
[1766121273434,8.99281581,837.26,836.53,1.18997686]
[1766121275348,8.99281581,837.26,836.52,1.18997686]
[1766121276441,8.99281581,837.26,836.51,1.18997686]
[1766121277340,8.99281581,837.26,836.52,1.18997686]
[1766121278340,8.99281581,837.26,836.51,1.18997686]
[1766121279041,0.20782509,837.58,836.56,1.18997686]
[1766121279445,0.20782509,837.58,836.58,1.18997686]
[1766121279740,0.20782509,837.58,836.62,1.18997686]
[1766121280345,0.20782509,837.58,836.61,1.18997686]
[1766121281150,0.20782509,837.58,836.6,1.18997686]
[1766121281445,0.88327797,837.95,836.48,2.164]
[1766121281446,0.88327797,838.72,837.36,1.18997686]
[1766121281750,0.20773329,838.15,837.42,0.89001744]
[1766121282251,0.20773329,838.15,837.35,0.89001744]
[1766121283159,0.20773329,838.15,837.34,0.89001744]
[1766121283353,0.20773329,838.15,837.28,0.89001744]
[1766121283552,0.20773329,838.15,837.33,0.89001744]
[1766121284350,0.20773329,838.15,837.26,0.89001744]
[1766121285253,0.20773329,838.15,837.21,0.89001744]
[1766121286366,8.88222221,838.84,837.39,0.89001744]
[1766121286565,0.20759388,838.52,837.6,0.89001744]
[1766121286858,8.88222221,838.84,837.6,0.89001744]
[1766121287068,0.20754931,838.69,837.6,0.89001744]
[1766121287455,0.20754931,838.69,837.39,13.06780134]
[1766121287456,0.20754931,838.69,837.5,0.89001744]
[1766121287853,0.20754931,838.69,837.44,0.89001744]
[1766121288258,0.20754931,838.69,837.39,13.06780134]
[1766121324783,0.20754931,838.69,837.4,2.248]
[1766121325578,1.40199744,838.69,837.4,2.248]
[1766121326185,1.19444813,838.68,837.4,2.248]
[1766121326384,1.19444813,838.67,837.4,2.248]
[1766121326582,1.19444813,838.66,837.4,2.248]
[1766121326786,1.19444813,838.65,837.4,2.248]
[1766121326988,1.19444813,838.64,837.4,2.248]
[1766121327188,1.19444813,838.63,837.4,2.248]
[1766121327390,1.19444813,838.62,837.4,2.248]
[1766121327585,0.20754931,838.69,837.4,2.248]
[1766121327586,1.19444813,838.61,837.4,2.248]
[1766121327791,1.19444813,838.6,837.4,2.248]
[1766121327989,0.20754931,838.69,837.4,2.248]
[1766121327990,1.19444813,838.59,837.4,2.248]
[1766121328187,1.19444813,838.58,837.4,2.248]
[1766121328486,1.19444813,838.57,837.4,2.248]
[1766121328684,1.19444813,838.56,837.4,2.248]
[1766121328886,0.87395747,838.65,837.4,2.248]
[1766121329084,1.194649,838.64,837.4,2.248]
[1766121329390,0.87395747,838.62,837.4,2.248]
[1766121329589,1.194649,838.61,837.4,2.248]
[1766121329788,1.194649,838.6,837.4,2.248]
[1766121330086,1.194649,838.59,837.4,2.248]
[1766121330390,1.194649,838.58,837.4,2.248]
[1766121330590,1.194649,838.57,837.4,2.248]
[1766121330790,1.194649,838.56,837.4,2.248]
[1766121330988,1.194649,838.55,837.4,2.248]
[1766121331192,1.194649,838.54,837.4,2.248]
[1766121331388,1.194649,838.53,837.4,2.248]
[1766121331692,1.194649,838.52,837.4,2.248]
[1766121331888,0.87395747,838.59,837.4,2.248]
[1766121332092,1.19462343,838.58,837.4,2.248]
[1766121332291,2.0685809,838.58,837.4,2.248]
[1766121332487,1.19462343,838.57,837.4,2.248]
[1766121333193,2.0685809,838.57,837.4,2.248]
[1766121333393,0.87395747,838.07,837.4,2.248]
[1766121333593,1.19462343,838.06,837.4,2.248]
[1766121335296,2.0685809,838.06,837.4,2.248]
[1766121335497,1.19462343,838.05,837.4,2.248]
[1766121335797,1.19462343,838.04,837.4,2.248]
[1766121336095,0.87395747,838.12,837.4,2.248]
[1766121336295,1.19528552,838.11,837.4,2.248]
[1766121336696,1.19528552,838.11,836.55,0.00901012]
[1766121336892,1.19528552,838.11,836.38,0.87580646]
[1766121337198,2.06924299,838.11,836.39,0.87580646]
[1766121337497,1.19528552,838.1,836.38,0.87580646]
[1766121337693,1.19528552,838.09,836.38,0.87580646]
[1766121337899,1.19528552,838.08,836.38,0.87580646]
[1766121338094,1.19528552,838.07,836.38,0.87580646]
[1766121338295,1.19528552,838.06,836.4,0.87580646]
[1766121338498,1.19528552,838.05,836.38,0.87580646]
[1766121338795,1.19528552,838.04,836.38,0.87580646]
[1766121338995,0.87395747,838.11,836.38,0.87580646]
[1766121339196,1.19528526,838.1,836.38,0.87580646]
[1766121339698,1.19528526,838.09,836.38,0.87580646]
[1766121339898,1.19528526,838.08,836.38,0.87580646]
[1766121340195,1.19528526,838.07,836.39,0.87580646]
[1766121340397,1.19528526,838.06,836.39,1.5]
[1766121340597,1.19528526,838.05,836.39,1.5]
[1766121340794,1.19528526,838.04,836.39,1.5]
[1766121340993,0.87395747,838.12,836.39,1.5]
[1766121341199,2.06924242,838.11,836.39,1.5]
[1766121341396,1.19528495,838.1,836.39,1.5]
[1766121341597,1.19528495,838.09,836.39,1.5]
[1766121341795,1.19528495,838.08,836.39,1.5]
[1766121341995,1.19528495,838.07,836.39,1.5]
[1766121342196,1.19528495,838.06,836.39,1.5]
[1766121342395,1.19528495,838.05,836.39,1.5]
[1766121342595,0.87395747,838.13,836.39,1.5]
[1766121342800,1.1952849,838.12,836.39,1.5]
[1766121343000,1.19528485,838.11,836.39,1.5]
[1766121343297,1.19528485,838.1,836.39,1.5]
[1766121343501,1.19528485,838.09,836.39,1.5]
[1766121343696,1.19528485,838.08,836.39,1.5]
[1766121343899,1.19528485,838.07,836.39,1.5]
[1766121344095,0.87395747,838.15,836.39,1.5]
[1766121344294,1.1952849,838.14,836.39,1.5]
[1766121344499,1.1952849,838.13,836.39,1.5]
[1766121344796,1.1952849,838.12,836.39,1.5]
[1766121345097,1.1952849,838.11,836.39,1.5]
[1766121345399,1.1952849,838.1,836.39,1.5]
[1766121345595,1.1952849,838.09,836.39,1.5]
[1766121345798,1.1952849,838.08,836.39,1.5]
[1766121345996,0.87395747,838.17,836.39,1.5]
[1766121346199,1.19528557,838.16,836.39,1.5]
[1766121346600,1.19528557,838.15,836.39,1.5]
[1766121346800,1.19528557,838.14,836.39,1.5]
[1766121346996,0.87395747,838.1,836.39,1.5]
[1766121347201,2.06924304,838.09,836.39,1.5]
[1766121347398,1.19528557,838.08,836.39,1.5]
[1766121347603,1.19528557,838.07,836.39,1.5]
[1766121347902,1.19528557,838.06,836.39,1.5]
[1766121348102,1.19528557,838.05,836.39,1.5]
[1766121348304,1.19528557,838.04,836.39,1.5]
[1766121348503,1.19528557,838.03,836.39,1.5]
[1766121348804,1.19528557,838.02,836.39,1.5]
[1766121348999,1.19528557,838.01,836.39,1.5]
[1766121349199,0.87395747,838.1,836.39,1.5]
[1766121349402,1.19540084,838.09,836.39,1.5]
[1766121350100,2.06935831,838.09,836.39,1.5]
[1766121350299,2.06935831,838.08,836.39,1.5]
[1766121350504,1.19540084,838.07,836.39,1.5]
[1766121350800,1.19540084,838.06,836.39,1.5]
[1766121350999,2.06935831,838.05,836.39,1.5]
[1766121351204,1.19540084,838.04,836.39,1.5]
[1766121351405,0.87395747,837.98,836.39,1.5]
[1766121351701,0.87395747,837.92,836.39,1.5]
[1766121351901,1.19540084,837.91,836.39,1.5]
[1766121352506,1.19540084,837.9,836.39,1.5]
[1766121352706,1.19540084,837.89,836.39,1.5]
[1766121352905,1.19540084,837.88,836.39,1.5]
[1766121353202,1.19540084,837.87,836.39,1.5]
[1766121353507,1.19540084,837.86,836.39,1.5]
[1766121353807,1.19540084,837.85,836.39,1.5]
[1766121354002,1.19540084,837.84,836.39,1.5]
[1766121354202,0.87395747,837.93,836.39,1.5]
[1766121354409,1.19566791,837.92,836.39,1.5]
[1766121354706,1.19566791,837.91,836.39,1.5]
[1766121354906,1.19566791,837.9,836.39,1.5]
[1766121355107,1.19566791,837.89,836.39,1.5]
[1766121355305,1.19566791,837.88,836.39,1.5]
[1766121355504,1.19566791,837.87,836.39,1.5]
[1766121355806,1.19566791,837.86,836.39,1.5]